[Event "Titled Tuesday Blitz June 20 Late 2023"]
[White "Goryachkina, Aleksandra"]
[Black "Arias Igual, Alejandro"]
[WhiteFideId "4147103"]
[BlackFideId "2254905"]
[WhiteElo "2471"]
[BlackElo "2179"]
[Result "1-0"]
[Round "2"]
[TimeControl "180+2"]
[Date "2023.06.20"]
[WhiteClock "0:00:46"]
[BlackClock "0:00:00"]
[Board "119"]

1. e4 {[%clk 0:02:59]}  c5 {[%clk 0:02:56]} 2. Nf3 {[%clk 0:02:59]}  g6 {[%clk 0:02:56]} 3. g3 {[%clk 0:02:52]}  Bg7 {[%clk 0:02:55]} 4. Bg2 {[%clk 0:02:53]}  Nc6 {[%clk 0:02:55]} 5. O-O {[%clk 0:02:52]}  e6 {[%clk 0:02:56]} 6. c3 {[%clk 0:02:45]}  Nge7 {[%clk 0:02:55]} 7. d4 {[%clk 0:02:45]}  cxd4 {[%clk 0:02:56]} 8. cxd4 {[%clk 0:02:46]}  d5 {[%clk 0:02:56]} 9. e5 {[%clk 0:02:46]}  O-O {[%clk 0:02:54]} 10. Nc3 {[%clk 0:02:44]}  Rb8 {[%clk 0:02:46]} 11. Bf4 {[%clk 0:02:26]}  b5 {[%clk 0:02:42]} 12. Qd2 {[%clk 0:02:26]}  Nf5 {[%clk 0:02:29]} 13. Rfd1 {[%clk 0:02:20]}  a5 {[%clk 0:02:22]} 14. h4 {[%clk 0:02:18]}  f6 {[%clk 0:02:03]} 15. exf6 {[%clk 0:02:16]}  Bxf6 {[%clk 0:02:04]} 16. Bxb8 {[%clk 0:02:15]}  Nxb8 {[%clk 0:02:03]} 17. Nxb5 {[%clk 0:02:15]}  Bd7 {[%clk 0:01:57]} 18. Nc3 {[%clk 0:02:11]}  Nc6 {[%clk 0:01:56]} 19. Ne2 {[%clk 0:02:08]}  Nd6 {[%clk 0:01:55]} 20. Rac1 {[%clk 0:02:05]}  Qb6 {[%clk 0:01:51]} 21. b3 {[%clk 0:02:04]}  Bg7 {[%clk 0:01:44]} 22. Qe3 {[%clk 0:01:40]}  Ne7 {[%clk 0:01:34]} 23. Qc3 {[%clk 0:01:29]}  Rc8 {[%clk 0:01:23]} 24. Qb2 {[%clk 0:01:23]}  Rf8 {[%clk 0:01:19]} 25. Qa3 {[%clk 0:01:15]}  Nef5 {[%clk 0:01:13]} 26. Qc5 {[%clk 0:01:13]}  Qb8 {[%clk 0:01:10]} 27. Qc7 {[%clk 0:01:07]}  Qe8 {[%clk 0:01:06]} 28. Qxa5 {[%clk 0:01:04]}  Ne4 {[%clk 0:01:06]} 29. Qc7 {[%clk 0:00:55]}  Bb5 {[%clk 0:01:04]} 30. Nf4 {[%clk 0:00:54]}  Nfxg3 {[%clk 0:00:43]} 31. fxg3 {[%clk 0:00:53]}  Nxg3 {[%clk 0:00:44]} 32. Re1 {[%clk 0:00:51]}  Rxf4 {[%clk 0:00:41]} 33. Qxf4 {[%clk 0:00:50]}  Ne2+ {[%clk 0:00:38]} 34. Rxe2 {[%clk 0:00:51]}  Bxe2 {[%clk 0:00:39]} 35. Re1 {[%clk 0:00:49]}  Bd3 {[%clk 0:00:38]} 36. Bh3 {[%clk 0:00:49]}  Be4 {[%clk 0:00:32]} 37. Rxe4 {[%clk 0:00:47]}  dxe4 {[%clk 0:00:31]} 38. Qxe4 {[%clk 0:00:47]}  Qd8 {[%clk 0:00:26]} 39. Qxe6+ {[%clk 0:00:46]}  Kh8 {[%clk 0:00:00]} 40. Qc8 {[%clk 0:00:46]} 1-0


[Site "https://www.chess.com"]

[Event "Titled Tuesday Blitz June 20 Late 2023"]
[White "Melikhov, Evgeny V."]
[Black "Kavyev, Ruslan"]
[WhiteFideId "4122046"]
[BlackFideId "34110981"]
[WhiteElo "2158"]
[BlackElo "2336"]
[Result "1/2-1/2"]
[Round "2"]
[TimeControl "180+2"]
[Date "2023.06.20"]
[WhiteClock "0:00:18"]
[BlackClock "0:01:39"]
[Board "121"]

1. d4 {[%clk 0:03:00]}  Nf6 {[%clk 0:03:00]} 2. c4 {[%clk 0:02:59]}  g6 {[%clk 0:03:01]} 3. Nc3 {[%clk 0:02:59]}  Bg7 {[%clk 0:03:01]} 4. e4 {[%clk 0:02:59]}  d6 {[%clk 0:03:02]} 5. f3 {[%clk 0:02:59]}  O-O {[%clk 0:03:03]} 6. Be3 {[%clk 0:02:59]}  Nbd7 {[%clk 0:03:02]} 7. Qd2 {[%clk 0:02:59]}  a6 {[%clk 0:03:03]} 8. Bh6 {[%clk 0:02:57]}  e5 {[%clk 0:02:58]} 9. d5 {[%clk 0:02:56]}  Nxe4 {[%clk 0:02:56]} 10. Nxe4 {[%clk 0:02:48]}  Qh4+ {[%clk 0:02:51]} 11. g3 {[%clk 0:02:43]}  Qxh6 {[%clk 0:02:50]} 12. Qxh6 {[%clk 0:02:43]}  Bxh6 {[%clk 0:02:51]} 13. h4 {[%clk 0:02:36]}  f5 {[%clk 0:02:50]} 14. Ng5 {[%clk 0:02:36]}  Bxg5 {[%clk 0:02:50]} 15. hxg5 {[%clk 0:02:37]}  a5 {[%clk 0:02:51]} 16. Bd3 {[%clk 0:02:32]}  Nc5 {[%clk 0:02:49]} 17. Bc2 {[%clk 0:02:32]}  e4 {[%clk 0:02:45]} 18. f4 {[%clk 0:02:28]}  b6 {[%clk 0:02:41]} 19. Ne2 {[%clk 0:02:25]}  Bd7 {[%clk 0:02:41]} 20. Nd4 {[%clk 0:02:21]}  Kg7 {[%clk 0:02:34]} 21. Kf2 {[%clk 0:02:20]}  Rh8 {[%clk 0:02:31]} 22. Rh6 {[%clk 0:02:18]}  Rab8 {[%clk 0:02:26]} 23. Nb5 {[%clk 0:02:16]}  Bxb5 {[%clk 0:02:25]} 24. cxb5 {[%clk 0:02:17]}  a4 {[%clk 0:02:20]} 25. Ke3 {[%clk 0:02:09]}  Ra8 {[%clk 0:02:17]} 26. Bd1 {[%clk 0:01:49]}  Ra5 {[%clk 0:02:15]} 27. Be2 {[%clk 0:01:49]}  Nd3 {[%clk 0:02:12]} 28. Bxd3 {[%clk 0:01:46]}  exd3 {[%clk 0:02:13]} 29. Rc1 {[%clk 0:01:45]}  Rc8 {[%clk 0:02:11]} 30. Rch1 {[%clk 0:01:45]}  Rh8 {[%clk 0:02:11]} 31. Rc1 {[%clk 0:01:44]}  Re8+ {[%clk 0:02:12]} 32. Kxd3 {[%clk 0:01:43]}  Re7 {[%clk 0:02:13]} 33. Kc4 {[%clk 0:01:31]}  Ra8 {[%clk 0:02:07]} 34. Kb4 {[%clk 0:01:20]}  Rae8 {[%clk 0:02:01]} 35. Kxa4 {[%clk 0:01:17]}  Re4+ {[%clk 0:02:02]} 36. Ka3 {[%clk 0:01:07]}  R8e7 {[%clk 0:02:03]} 37. Rch1 {[%clk 0:01:05]}  Kg8 {[%clk 0:02:02]} 38. Rc1 {[%clk 0:01:01]}  Re3+ {[%clk 0:02:01]} 39. b3 {[%clk 0:00:56]}  Rxg3 {[%clk 0:02:00]} 40. Rc4 {[%clk 0:00:55]}  Rge3 {[%clk 0:01:57]} 41. Rh1 {[%clk 0:00:54]}  R3e4 {[%clk 0:01:57]} 42. Rhc1 {[%clk 0:00:53]}  Rxc4 {[%clk 0:01:56]} 43. Rxc4 {[%clk 0:00:51]}  h6 {[%clk 0:01:57]} 44. Kb2 {[%clk 0:00:47]}  hxg5 {[%clk 0:01:57]} 45. fxg5 {[%clk 0:00:47]}  Kf7 {[%clk 0:01:57]} 46. a4 {[%clk 0:00:47]}  Ke8 {[%clk 0:01:58]} 47. b4 {[%clk 0:00:46]}  Kd7 {[%clk 0:01:59]} 48. a5 {[%clk 0:00:46]}  Re5 {[%clk 0:01:54]} 49. a6 {[%clk 0:00:45]}  Kc8 {[%clk 0:01:54]} 50. a7 {[%clk 0:00:44]}  Kb7 {[%clk 0:01:54]} 51. Rxc7+ {[%clk 0:00:44]}  Ka8 {[%clk 0:01:55]} 52. Kc3 {[%clk 0:00:36]}  Rxd5 {[%clk 0:01:53]} 53. Kc4 {[%clk 0:00:36]}  Re5 {[%clk 0:01:53]} 54. Rd7 {[%clk 0:00:32]}  d5+ {[%clk 0:01:45]} 55. Kd4 {[%clk 0:00:28]}  Re1 {[%clk 0:01:41]} 56. Rg7 {[%clk 0:00:25]}  f4 {[%clk 0:01:37]} 57. Rxg6 {[%clk 0:00:25]}  Kxa7 {[%clk 0:01:37]} 58. Rg7+ {[%clk 0:00:24]}  Ka8 {[%clk 0:01:37]} 59. Rf7 {[%clk 0:00:24]}  Rg1 {[%clk 0:01:37]} 60. Kxd5 {[%clk 0:00:23]}  Rxg5+ {[%clk 0:01:37]} 61. Kc6 {[%clk 0:00:24]}  Rg6+ {[%clk 0:01:38]} 62. Kc7 {[%clk 0:00:20]}  Ka7 {[%clk 0:01:37]} 63. Rxf4 {[%clk 0:00:19]}  Rg7+ {[%clk 0:01:37]} 64. Kc6 {[%clk 0:00:19]}  Rg6+ {[%clk 0:01:38]} 65. Kc7 {[%clk 0:00:19]}  Rg7+ {[%clk 0:01:38]} 66. Kc6 {[%clk 0:00:19]}  Rg6+ {[%clk 0:01:39]} 67. Kc7 {[%clk 0:00:18]} 1/2-1/2


[Site "https://www.chess.com"]

[Event "Titled Tuesday Blitz June 20 Late 2023"]
[White "sebastianmarinp"]
[Black "Ingebretsen, Jens E"]
[BlackFideId "1522965"]
[WhiteElo "2366"]
[BlackElo "2213"]
[Result "0-1"]
[Round "2"]
[TimeControl "180+2"]
[Date "2023.06.20"]
[WhiteClock "0:00:00"]
[BlackClock "0:00:12"]
[Board "125"]

1. e4 {[%clk 0:03:00]}  c5 {[%clk 0:02:46]} 2. Nf3 {[%clk 0:02:59]}  Nc6 {[%clk 0:02:44]} 3. d4 {[%clk 0:02:59]}  cxd4 {[%clk 0:02:45]} 4. Nxd4 {[%clk 0:03:00]}  Nf6 {[%clk 0:02:45]} 5. Nc3 {[%clk 0:03:01]}  e5 {[%clk 0:02:45]} 6. Ndb5 {[%clk 0:03:01]}  d6 {[%clk 0:02:46]} 7. Bg5 {[%clk 0:03:01]}  a6 {[%clk 0:02:46]} 8. Na3 {[%clk 0:03:01]}  b5 {[%clk 0:02:44]} 9. Nd5 {[%clk 0:03:02]}  Be7 {[%clk 0:02:44]} 10. Bxf6 {[%clk 0:03:02]}  Bxf6 {[%clk 0:02:44]} 11. c3 {[%clk 0:03:03]}  Ne7 {[%clk 0:02:44]} 12. Nxf6+ {[%clk 0:03:02]}  gxf6 {[%clk 0:02:45]} 13. Nc2 {[%clk 0:03:00]}  Bb7 {[%clk 0:02:45]} 14. Bd3 {[%clk 0:02:59]}  d5 {[%clk 0:02:40]} 15. Qe2 {[%clk 0:02:42]}  f5 {[%clk 0:02:38]} 16. exf5 {[%clk 0:02:37]}  e4 {[%clk 0:02:34]} 17. f6 {[%clk 0:02:34]}  Ng6 {[%clk 0:02:32]} 18. Qe3 {[%clk 0:02:09]}  Qxf6 {[%clk 0:02:11]} 19. O-O-O {[%clk 0:01:42]}  O-O {[%clk 0:02:07]} 20. Be2 {[%clk 0:01:39]}  Rac8 {[%clk 0:02:07]} 21. Kb1 {[%clk 0:01:37]}  Ne5 {[%clk 0:01:57]} 22. Nd4 {[%clk 0:01:21]}  b4 {[%clk 0:01:41]} 23. cxb4 {[%clk 0:01:18]}  Nc4 {[%clk 0:01:42]} 24. Bxc4 {[%clk 0:01:13]}  Rxc4 {[%clk 0:01:43]} 25. a3 {[%clk 0:01:12]}  Rfc8 {[%clk 0:01:36]} 26. Rd2 {[%clk 0:01:08]}  a5 {[%clk 0:01:34]} 27. b5 {[%clk 0:01:05]}  a4 {[%clk 0:01:33]} 28. h4 {[%clk 0:00:54]}  h6 {[%clk 0:01:25]} 29. g4 {[%clk 0:00:41]}  Kh7 {[%clk 0:01:04]} 30. g5 {[%clk 0:00:40]}  Qe5 {[%clk 0:01:04]} 31. f4 {[%clk 0:00:29]}  Qg7 {[%clk 0:01:00]} 32. f5 {[%clk 0:00:16]}  Qe5 {[%clk 0:00:59]} 33. g6+ {[%clk 0:00:11]}  fxg6 {[%clk 0:00:59]} 34. fxg6+ {[%clk 0:00:10]}  Kg7 {[%clk 0:00:58]} 35. Rf1 {[%clk 0:00:08]}  R8c7 {[%clk 0:00:56]} 36. h5 {[%clk 0:00:07]}  Bc8 {[%clk 0:00:52]} 37. Rf7+ {[%clk 0:00:04]}  Rxf7 {[%clk 0:00:51]} 38. gxf7 {[%clk 0:00:05]}  Kxf7 {[%clk 0:00:36]} 39. Nc6 {[%clk 0:00:04]}  Qxh5 {[%clk 0:00:27]} 40. Rf2+ {[%clk 0:00:03]}  Bf5 {[%clk 0:00:19]} 41. Qa7+ {[%clk 0:00:02]}  Kg6 {[%clk 0:00:12]} 42. Rg2+ {[%clk 0:00:02]}  Bg4 {[%clk 0:00:11]} 43. Rxg4+ {[%clk 0:00:01]}  Kf5 {[%clk 0:00:10]} 44. Rg2 {[%clk 0:00:01]}  Qh1+ {[%clk 0:00:10]} 45. Ka2 {[%clk 0:00:02]}  Qxg2 {[%clk 0:00:10]} 46. Qf7+ {[%clk 0:00:02]}  Kg4 {[%clk 0:00:11]} 47. Qg6+ {[%clk 0:00:02]}  Kh3 {[%clk 0:00:11]} 48. Qxh6+ {[%clk 0:00:02]}  Kg3 {[%clk 0:00:12]} 49. Qg5+ {[%clk 0:00:02]}  Kh2 {[%clk 0:00:12]} 50. Qxd5 {[%clk 0:00:01]}  Qc2 {[%clk 0:00:12]} 51. Qe5+ {[%clk 0:00:00]}  Kg1 {[%clk 0:00:12]} 0-1


[Site "https://www.chess.com"]

[Event "Titled Tuesday Blitz June 20 Late 2023"]
[White "Mikhalsky, Vladimir"]
[Black "D`Arruda, Ricardo D."]
[WhiteFideId "14144352"]
[BlackFideId "100692"]
[WhiteElo "2236"]
[BlackElo "2539"]
[Result "1-0"]
[Round "2"]
[TimeControl "180+2"]
[Date "2023.06.20"]
[WhiteClock "0:00:05"]
[BlackClock "0:00:13"]
[Board "127"]

1. d4 {[%clk 0:03:00]}  Nf6 {[%clk 0:02:27]} 2. c4 {[%clk 0:02:59]}  e5 {[%clk 0:02:23]} 3. dxe5 {[%clk 0:02:56]}  Ne4 {[%clk 0:02:23]} 4. Nf3 {[%clk 0:02:52]}  Nc6 {[%clk 0:02:24]} 5. Nbd2 {[%clk 0:02:47]}  Nc5 {[%clk 0:02:23]} 6. b3 {[%clk 0:02:37]}  Qe7 {[%clk 0:02:23]} 7. Bb2 {[%clk 0:02:36]}  d6 {[%clk 0:02:23]} 8. a3 {[%clk 0:02:18]}  a5 {[%clk 0:02:20]} 9. e3 {[%clk 0:02:04]}  dxe5 {[%clk 0:02:19]} 10. Qc2 {[%clk 0:02:00]}  Bg4 {[%clk 0:02:10]} 11. Be2 {[%clk 0:01:53]}  e4 {[%clk 0:02:00]} 12. Nd4 {[%clk 0:01:40]}  Nxd4 {[%clk 0:02:00]} 13. Bxd4 {[%clk 0:01:29]}  Bxe2 {[%clk 0:01:59]} 14. Bxc5 {[%clk 0:01:20]}  Bd3 {[%clk 0:01:43]} 15. Qxd3 {[%clk 0:01:11]}  exd3 {[%clk 0:01:41]} 16. Bxe7 {[%clk 0:01:11]}  Bxe7 {[%clk 0:01:41]} 17. O-O {[%clk 0:00:56]}  O-O-O {[%clk 0:01:41]} 18. Rfd1 {[%clk 0:00:54]}  Rd7 {[%clk 0:01:31]} 19. b4 {[%clk 0:00:47]}  a4 {[%clk 0:01:30]} 20. Ne4 {[%clk 0:00:42]}  Rhd8 {[%clk 0:01:27]} 21. Ra2 {[%clk 0:00:32]}  Bf6 {[%clk 0:00:59]} 22. Nc5 {[%clk 0:00:30]}  Rd6 {[%clk 0:00:58]} 23. Nxa4 {[%clk 0:00:29]}  b6 {[%clk 0:00:55]} 24. Kf1 {[%clk 0:00:26]}  Kb7 {[%clk 0:00:53]} 25. c5 {[%clk 0:00:20]}  Re6 {[%clk 0:00:52]} 26. cxb6 {[%clk 0:00:19]}  cxb6 {[%clk 0:00:52]} 27. Nb2 {[%clk 0:00:19]}  d2 {[%clk 0:00:47]} 28. Nc4 {[%clk 0:00:19]}  Bc3 {[%clk 0:00:44]} 29. Ke2 {[%clk 0:00:18]}  Rc6 {[%clk 0:00:42]} 30. Nxd2 {[%clk 0:00:18]}  Rcd6 {[%clk 0:00:39]} 31. Rc2 {[%clk 0:00:18]}  Rd3 {[%clk 0:00:37]} 32. f3 {[%clk 0:00:17]}  b5 {[%clk 0:00:36]} 33. g4 {[%clk 0:00:16]}  Kb6 {[%clk 0:00:35]} 34. h4 {[%clk 0:00:15]}  R8d7 {[%clk 0:00:35]} 35. h5 {[%clk 0:00:15]}  R7d6 {[%clk 0:00:36]} 36. e4 {[%clk 0:00:16]}  f6 {[%clk 0:00:35]} 37. Ra2 {[%clk 0:00:13]}  h6 {[%clk 0:00:33]} 38. Rc2 {[%clk 0:00:13]}  R6d4 {[%clk 0:00:33]} 39. Ra2 {[%clk 0:00:13]}  Kc6 {[%clk 0:00:33]} 40. Rc2 {[%clk 0:00:13]}  Kd6 {[%clk 0:00:33]} 41. Ra2 {[%clk 0:00:10]}  Ke5 {[%clk 0:00:33]} 42. Rc2 {[%clk 0:00:10]}  Kf4 {[%clk 0:00:33]} 43. Ra2 {[%clk 0:00:10]}  Re3+ {[%clk 0:00:33]} 44. Kf2 {[%clk 0:00:09]}  Bxd2 {[%clk 0:00:32]} 45. Raxd2 {[%clk 0:00:08]}  Rxf3+ {[%clk 0:00:33]} 46. Kg2 {[%clk 0:00:07]}  Rxd2+ {[%clk 0:00:32]} 47. Rxd2 {[%clk 0:00:07]}  Rxa3 {[%clk 0:00:30]} 48. Rd5 {[%clk 0:00:07]}  Rg3+ {[%clk 0:00:26]} 49. Kh2 {[%clk 0:00:07]}  Rxg4 {[%clk 0:00:27]} 50. Rxb5 {[%clk 0:00:06]}  Kxe4 {[%clk 0:00:27]} 51. Kh3 {[%clk 0:00:06]}  Rg1 {[%clk 0:00:26]} 52. Rb7 {[%clk 0:00:06]}  f5 {[%clk 0:00:25]} 53. b5 {[%clk 0:00:06]}  f4 {[%clk 0:00:25]} 54. b6 {[%clk 0:00:06]}  Rb1 {[%clk 0:00:25]} 55. Rxg7 {[%clk 0:00:05]}  Rxb6 {[%clk 0:00:24]} 56. Rg6 {[%clk 0:00:06]}  Rb3+ {[%clk 0:00:21]} 57. Kg2 {[%clk 0:00:06]}  Rb2+ {[%clk 0:00:20]} 58. Kg1 {[%clk 0:00:05]}  Kf3 {[%clk 0:00:20]} 59. Rxh6 {[%clk 0:00:05]}  Rb1+ {[%clk 0:00:19]} 60. Kh2 {[%clk 0:00:05]}  Kf2 {[%clk 0:00:20]} 61. Rf6 {[%clk 0:00:05]}  f3 {[%clk 0:00:21]} 62. h6 {[%clk 0:00:05]}  Rb5 {[%clk 0:00:20]} 63. Kh3 {[%clk 0:00:04]}  Rh5+ {[%clk 0:00:20]} 64. Kg4 {[%clk 0:00:04]}  Rh1 {[%clk 0:00:20]} 65. Rxf3+ {[%clk 0:00:04]}  Kg2 {[%clk 0:00:21]} 66. Rg3+ {[%clk 0:00:04]}  Kf2 {[%clk 0:00:21]} 67. Rh3 {[%clk 0:00:05]}  Rg1+ {[%clk 0:00:20]} 68. Kf4 {[%clk 0:00:05]}  Rg8 {[%clk 0:00:19]} 69. h7 {[%clk 0:00:06]}  Rh8 {[%clk 0:00:20]} 70. Kg5 {[%clk 0:00:06]}  Kg2 {[%clk 0:00:21]} 71. Rh6 {[%clk 0:00:05]}  Kg3 {[%clk 0:00:20]} 72. Kg6 {[%clk 0:00:05]}  Kg4 {[%clk 0:00:21]} 73. Kg7 {[%clk 0:00:05]}  Kg5 {[%clk 0:00:13]} 74. Rh2 {[%clk 0:00:05]} 1-0


[Site "https://www.chess.com"]

[Event "Titled Tuesday Blitz June 20 Late 2023"]
[White "O`Gorman, Tom"]
[Black "Bueno, Alfeu Junior Varela"]
[WhiteFideId "2508249"]
[BlackFideId "2108879"]
[WhiteElo "2299"]
[BlackElo "2175"]
[Result "1-0"]
[Round "2"]
[TimeControl "180+2"]
[Date "2023.06.20"]
[WhiteClock "0:00:28"]
[BlackClock "0:00:06"]
[Board "128"]

1. e4 {[%clk 0:03:00]}  e6 {[%clk 0:03:00]} 2. d4 {[%clk 0:02:59]}  d5 {[%clk 0:03:00]} 3. Nd2 {[%clk 0:02:59]}  Nf6 {[%clk 0:03:00]} 4. e5 {[%clk 0:02:56]}  Nfd7 {[%clk 0:03:01]} 5. Ngf3 {[%clk 0:02:54]}  c5 {[%clk 0:03:01]} 6. c3 {[%clk 0:02:53]}  Nc6 {[%clk 0:03:00]} 7. Bd3 {[%clk 0:02:53]}  Qb6 {[%clk 0:03:00]} 8. O-O {[%clk 0:02:47]}  cxd4 {[%clk 0:03:00]} 9. cxd4 {[%clk 0:02:45]}  Nxd4 {[%clk 0:03:01]} 10. Nxd4 {[%clk 0:02:45]}  Qxd4 {[%clk 0:03:02]} 11. Nf3 {[%clk 0:02:46]}  Qb6 {[%clk 0:03:01]} 12. Qa4 {[%clk 0:02:45]}  Qb4 {[%clk 0:03:01]} 13. Qc2 {[%clk 0:02:43]}  Qc5 {[%clk 0:03:01]} 14. Qe2 {[%clk 0:02:42]}  Qb6 {[%clk 0:02:51]} 15. Rb1 {[%clk 0:02:12]}  h6 {[%clk 0:02:33]} 16. b4 {[%clk 0:02:07]}  Be7 {[%clk 0:02:24]} 17. Be3 {[%clk 0:02:05]}  Qd8 {[%clk 0:02:23]} 18. Rfc1 {[%clk 0:01:59]}  O-O {[%clk 0:02:22]} 19. Bc2 {[%clk 0:01:55]}  Re8 {[%clk 0:02:20]} 20. Qd3 {[%clk 0:01:53]}  Nf8 {[%clk 0:02:20]} 21. Nd4 {[%clk 0:01:52]}  a6 {[%clk 0:02:05]} 22. a4 {[%clk 0:01:42]}  Bd7 {[%clk 0:02:05]} 23. b5 {[%clk 0:01:40]}  axb5 {[%clk 0:02:05]} 24. axb5 {[%clk 0:01:41]}  Ra3 {[%clk 0:02:05]} 25. Rb3 {[%clk 0:01:37]}  Qa5 {[%clk 0:01:54]} 26. Rxa3 {[%clk 0:01:35]}  Qxa3 {[%clk 0:01:54]} 27. Qxa3 {[%clk 0:01:22]}  Bxa3 {[%clk 0:01:55]} 28. Ra1 {[%clk 0:01:22]}  Bb2 {[%clk 0:01:32]} 29. Ra7 {[%clk 0:01:20]}  Bxd4 {[%clk 0:01:29]} 30. Bxd4 {[%clk 0:01:21]}  Bxb5 {[%clk 0:01:29]} 31. Rxb7 {[%clk 0:01:21]}  Rc8 {[%clk 0:01:13]} 32. Rxb5 {[%clk 0:01:03]}  Rxc2 {[%clk 0:01:12]} 33. g3 {[%clk 0:01:03]}  Rc4 {[%clk 0:00:56]} 34. Bc5 {[%clk 0:00:53]}  Nd7 {[%clk 0:00:27]} 35. Bd6 {[%clk 0:00:52]}  f6 {[%clk 0:00:22]} 36. exf6 {[%clk 0:00:52]}  Nxf6 {[%clk 0:00:22]} 37. Rb7 {[%clk 0:00:50]}  Re4 {[%clk 0:00:20]} 38. Kf1 {[%clk 0:00:42]}  Kh7 {[%clk 0:00:17]} 39. Bf8 {[%clk 0:00:37]}  Nh5 {[%clk 0:00:09]} 40. f3 {[%clk 0:00:37]}  Rc4 {[%clk 0:00:09]} 41. g4 {[%clk 0:00:36]}  Nf4 {[%clk 0:00:09]} 42. Bxg7 {[%clk 0:00:34]}  Kg6 {[%clk 0:00:08]} 43. Bb2 {[%clk 0:00:29]}  h5 {[%clk 0:00:06]} 44. Rg7+ {[%clk 0:00:28]}  Kh6 {[%clk 0:00:06]} 45. g5# {[%clk 0:00:28]} 1-0


[Site "https://www.chess.com"]

[Event "Titled Tuesday Blitz June 20 Late 2023"]
[White "Stachanczyk, Jacek"]
[Black "Han, Yichen"]
[WhiteFideId "1116657"]
[BlackFideId "1054430"]
[WhiteElo "2084"]
[BlackElo "2342"]
[Result "1-0"]
[Round "2"]
[TimeControl "180+2"]
[Date "2023.06.20"]
[WhiteClock "0:02:10"]
[BlackClock "0:02:35"]
[Board "129"]

1. e4 {[%clk 0:02:57]}  c5 {[%clk 0:02:59]} 2. Nf3 {[%clk 0:02:57]}  e6 {[%clk 0:03:00]} 3. d4 {[%clk 0:02:57]}  cxd4 {[%clk 0:03:01]} 4. Nxd4 {[%clk 0:02:57]}  a6 {[%clk 0:03:02]} 5. Nc3 {[%clk 0:02:57]}  Qc7 {[%clk 0:03:02]} 6. Qd3 {[%clk 0:02:57]}  Nf6 {[%clk 0:03:01]} 7. Bd2 {[%clk 0:02:54]}  b5 {[%clk 0:02:57]} 8. Qg3 {[%clk 0:02:53]}  Qxg3 {[%clk 0:02:55]} 9. hxg3 {[%clk 0:02:53]}  Bb7 {[%clk 0:02:53]} 10. f3 {[%clk 0:02:53]}  d5 {[%clk 0:02:52]} 11. exd5 {[%clk 0:02:49]}  Nxd5 {[%clk 0:02:53]} 12. Nxd5 {[%clk 0:02:48]}  Bxd5 {[%clk 0:02:53]} 13. a4 {[%clk 0:02:49]}  Bc5 {[%clk 0:02:52]} 14. Nb3 {[%clk 0:02:35]}  Bxb3 {[%clk 0:02:51]} 15. cxb3 {[%clk 0:02:36]}  b4 {[%clk 0:02:50]} 16. Bd3 {[%clk 0:02:28]}  h6 {[%clk 0:02:43]} 17. Rc1 {[%clk 0:02:27]}  Nd7 {[%clk 0:02:44]} 18. g4 {[%clk 0:02:23]}  Ke7 {[%clk 0:02:44]} 19. Ke2 {[%clk 0:02:18]}  a5 {[%clk 0:02:41]} 20. Bb5 {[%clk 0:02:14]}  Rac8 {[%clk 0:02:41]} 21. g5 {[%clk 0:02:12]}  hxg5 {[%clk 0:02:40]} 22. Rxh8 {[%clk 0:02:11]}  Nf6 {[%clk 0:02:35]} 23. Rxc8 {[%clk 0:02:10]} 1-0


[Site "https://www.chess.com"]

[Event "Titled Tuesday Blitz June 20 Late 2023"]
[White "Dushyant Sharma"]
[Black "Lalanne, Pablo"]
[WhiteFideId "25065130"]
[BlackFideId "112151"]
[WhiteElo "2198"]
[BlackElo "2120"]
[Result "1-0"]
[Round "2"]
[TimeControl "180+2"]
[Date "2023.06.20"]
[WhiteClock "0:00:57"]
[BlackClock "0:00:12"]
[Board "130"]

1. e4 {[%clk 0:02:55]}  c5 {[%clk 0:02:59]} 2. Nf3 {[%clk 0:02:54]}  d6 {[%clk 0:03:00]} 3. d4 {[%clk 0:02:45]}  cxd4 {[%clk 0:03:01]} 4. Nxd4 {[%clk 0:02:46]}  Nf6 {[%clk 0:03:01]} 5. Nc3 {[%clk 0:02:46]}  Nc6 {[%clk 0:03:01]} 6. f4 {[%clk 0:02:47]}  e6 {[%clk 0:02:55]} 7. Nf3 {[%clk 0:02:48]}  a6 {[%clk 0:02:53]} 8. Bd3 {[%clk 0:02:49]}  Be7 {[%clk 0:02:52]} 9. O-O {[%clk 0:02:47]}  b5 {[%clk 0:02:50]} 10. a3 {[%clk 0:02:46]}  O-O {[%clk 0:02:49]} 11. Kh1 {[%clk 0:02:46]}  Bb7 {[%clk 0:02:45]} 12. Qe1 {[%clk 0:02:46]}  b4 {[%clk 0:02:41]} 13. axb4 {[%clk 0:02:45]}  Nxb4 {[%clk 0:02:42]} 14. Bd2 {[%clk 0:02:45]}  Nxd3 {[%clk 0:02:36]} 15. cxd3 {[%clk 0:02:46]}  d5 {[%clk 0:02:36]} 16. e5 {[%clk 0:02:45]}  Nd7 {[%clk 0:02:34]} 17. d4 {[%clk 0:02:43]}  a5 {[%clk 0:02:25]} 18. Qg3 {[%clk 0:02:40]}  Ba6 {[%clk 0:02:24]} 19. Rf2 {[%clk 0:02:37]}  Bd3 {[%clk 0:02:23]} 20. Qh3 {[%clk 0:02:29]}  Nb6 {[%clk 0:02:13]} 21. Rg1 {[%clk 0:02:20]}  Nc4 {[%clk 0:02:11]} 22. Bc1 {[%clk 0:02:16]}  a4 {[%clk 0:02:08]} 23. g4 {[%clk 0:01:52]}  Be4 {[%clk 0:02:07]} 24. f5 {[%clk 0:01:47]}  Bxf3+ {[%clk 0:01:28]} 25. Rxf3 {[%clk 0:01:40]}  Bg5 {[%clk 0:01:28]} 26. f6 {[%clk 0:01:36]}  Bxc1 {[%clk 0:01:12]} 27. Rxc1 {[%clk 0:01:26]}  Qb6 {[%clk 0:00:49]} 28. Qh4 {[%clk 0:01:04]}  h6 {[%clk 0:00:18]} 29. fxg7 {[%clk 0:00:57]}  Kxg7 {[%clk 0:00:12]} 30. Qf6+ {[%clk 0:00:57]} 1-0


[Site "https://www.chess.com"]

[Event "Titled Tuesday Blitz June 20 Late 2023"]
[White "julioramirezosio"]
[Black "Fedotov, Nikita"]
[BlackFideId "24161446"]
[WhiteElo "2355"]
[BlackElo "2211"]
[Result "1/2-1/2"]
[Round "2"]
[TimeControl "180+2"]
[Date "2023.06.20"]
[WhiteClock "0:00:56"]
[BlackClock "0:02:07"]
[Board "131"]

1. d4 {[%clk 0:03:00]}  Nf6 {[%clk 0:02:54]} 2. c4 {[%clk 0:03:00]}  c5 {[%clk 0:02:54]} 3. d5 {[%clk 0:03:00]}  b5 {[%clk 0:02:54]} 4. cxb5 {[%clk 0:03:00]}  a6 {[%clk 0:02:55]} 5. b6 {[%clk 0:03:01]}  d6 {[%clk 0:02:54]} 6. Nc3 {[%clk 0:03:00]}  g6 {[%clk 0:02:54]} 7. e4 {[%clk 0:03:01]}  Bg7 {[%clk 0:02:55]} 8. Be2 {[%clk 0:03:01]}  O-O {[%clk 0:02:55]} 9. Nf3 {[%clk 0:03:02]}  Bg4 {[%clk 0:02:52]} 10. Nd2 {[%clk 0:03:01]}  Bxe2 {[%clk 0:02:53]} 11. Qxe2 {[%clk 0:03:02]}  Nbd7 {[%clk 0:02:52]} 12. a4 {[%clk 0:03:02]}  a5 {[%clk 0:02:52]} 13. O-O {[%clk 0:02:42]}  Nxb6 {[%clk 0:02:52]} 14. Ra3 {[%clk 0:02:25]}  Ne8 {[%clk 0:02:47]} 15. Nb5 {[%clk 0:02:21]}  Nc7 {[%clk 0:02:47]} 16. Nc4 {[%clk 0:02:17]}  Nxc4 {[%clk 0:02:46]} 17. Qxc4 {[%clk 0:02:18]}  Na6 {[%clk 0:02:47]} 18. f4 {[%clk 0:02:02]}  Rb8 {[%clk 0:02:45]} 19. f5 {[%clk 0:02:01]}  Qd7 {[%clk 0:02:42]} 20. Raf3 {[%clk 0:02:00]}  Nc7 {[%clk 0:02:41]} 21. fxg6 {[%clk 0:01:52]}  hxg6 {[%clk 0:02:41]} 22. Nxc7 {[%clk 0:01:29]}  Qxc7 {[%clk 0:02:40]} 23. Qc2 {[%clk 0:01:19]}  Rb4 {[%clk 0:02:36]} 24. e5 {[%clk 0:01:03]}  Bxe5 {[%clk 0:02:16]} 25. Rxf7 {[%clk 0:01:00]}  Rxf7 {[%clk 0:02:04]} 26. Qxg6+ {[%clk 0:00:59]}  Rg7 {[%clk 0:02:05]} 27. Qe8+ {[%clk 0:00:59]}  Kh7 {[%clk 0:02:05]} 28. Qh5+ {[%clk 0:01:00]}  Kg8 {[%clk 0:02:05]} 29. Qe8+ {[%clk 0:01:00]}  Kh7 {[%clk 0:02:06]} 30. Qh5+ {[%clk 0:01:01]}  Kg8 {[%clk 0:02:07]} 31. Qe8+ {[%clk 0:00:56]} 1/2-1/2


[Site "https://www.chess.com"]